bitfinex/quotes_SOLUSD_20250704
["timestamp","ask_amount","ask_price","bid_price","bid_amount"]
[1751594856741,41.38150398,152.67,152.66,1e-08]
[1751594869138,41.38727683,152.67,152.66,1e-08]
[1751594876075,41.38631629,152.67,152.66,1e-08]
[1751594879652,41.52847786,152.67,152.66,1e-08]
[1751594882987,41.812801,152.67,152.66,1e-08]
[1751594886387,125.42268271,152.67,152.62,1e-08]
[1751594886586,29.95866698,152.63,152.62,1e-08]
[1751594886766,6.55307994,152.6,152.59,0.1]
[1751594886964,10.51174692,152.6,152.59,0.1]
[1751594887279,6.55307994,152.6,152.59,0.1]
[1751594887495,10.51174692,152.6,152.59,0.1]
[1751594892392,10.51174692,152.6,152.56,1.2499095]
[1751594892393,26.89444678,152.6,152.56,1.2499095]
[1751594892565,3.95866698,152.58,152.56,1.2499095]
[1751594892771,3.95866698,152.59,152.56,1.2499095]
[1751594893172,33.02,152.58,152.56,1e-08]
[1751594893382,63.09866698,152.57,152.56,1e-08]
[1751594894264,59.14,152.57,152.56,1e-08]
[1751594894488,63.09866698,152.57,152.56,1e-08]
[1751594895480,69.65303546,152.57,152.56,1e-08]
[1751594898493,65.69436848,152.57,152.56,1e-08]
[1751594898679,69.65303546,152.57,152.56,1e-08]
[1751594900399,36.51303546,152.57,152.56,1e-08]
[1751594900692,69.65303546,152.57,152.56,1e-08]
[1751594907497,36.51303546,152.57,152.56,1e-08]
[1751594907679,69.67303546,152.57,152.56,1e-08]
[1751594907880,36.51303546,152.57,152.56,1e-08]
[1751594911206,6.55436848,152.57,152.56,1e-08]
[1751594911406,10.51303546,152.57,152.56,1e-08]
[1751594911904,10.51303546,152.57,152.56,0.10000001]
[1751594912097,10.71303546,152.57,152.56,0.10000001]
[1751594912989,10.71303546,152.57,152.56,1e-08]
[1751594915589,10.71303546,152.57,152.52,0.1]
[1751594915590,26.0,152.54,152.52,0.1]
[1751594915784,3.95866698,152.53,152.52,0.1]
[1751594916494,10.5147543,152.53,152.52,0.1]
[1751594917212,6.55608732,152.53,152.52,0.1]
[1751594917385,10.5147543,152.53,152.52,0.1]
[1751594921585,6.55608732,152.53,152.52,0.1]
[1751594921804,10.5147543,152.53,152.52,0.1]
[1751594934031,3.95866698,152.5,152.49,0.1]
[1751594934328,10.51604402,152.5,152.49,0.1]
[1751594935720,6.55737704,152.5,152.49,0.1]
[1751594935909,10.51604402,152.5,152.49,0.1]
[1751594937631,6.55694708,152.51,152.49,0.1]
[1751594937930,3.95866698,152.5,152.49,0.1]
[1751594938936,10.51604402,152.5,152.49,0.1]
[1751594939533,6.55737704,152.5,152.49,0.1]
[1751594939715,10.51604402,152.5,152.49,0.1]
[1751594943028,6.55737704,152.5,152.49,0.1]
[1751594943418,3.95866698,152.5,152.49,0.1]
[1751594943735,6.5566644,152.52,152.49,4.05866698]
[1751594946345,146.4,152.53,152.49,4.05866698]
[1751594946516,6.55522779,152.55,152.52,3.95866698]
[1751594947516,6.75491902,152.56,152.53,3.95866698]
[1751594947711,6.75491902,152.56,152.5,0.42648471]
[1751594947925,6.75491902,152.56,152.54,6.19467866]
[1751594951633,0.2,152.56,152.54,6.19467866]
[1751594952763,0.2,152.56,152.51,6.55694708]
[1751594952962,6.75481942,152.56,152.54,6.19467866]
[1751594954273,0.2,152.56,152.55,6.19467866]
[1751594954831,0.2,152.56,152.54,1.6045]
[1751594955146,0.2,152.56,152.55,6.19467866]
[1751594959830,6.75479811,152.56,152.55,6.19467866]
[1751594961440,0.2,152.56,152.55,6.19467866]
[1751594964044,0.2,152.56,152.55,6.4790018]
[1751594964432,0.2,152.56,152.55,13.03422959]
[1751594965657,0.2,152.56,152.55,6.4790018]
[1751594965955,0.2,152.56,152.55,13.03422959]
[1751594966159,0.2,152.63,152.57,0.14216157]
[1751594966336,0.2,152.63,152.62,6.19467866]
[1751594966532,0.2,152.63,152.62,12.74689986]
[1751594966751,0.2,152.63,152.62,20.96459986]
[1751594967056,0.2,152.63,152.62,53.44360166]
[1751594967469,0.2,152.63,152.62,53.58576323]
[1751594967771,0.2,152.63,152.62,34.64418471]
[1751594968058,0.2,152.63,152.62,34.17556337]
[1751594969156,0.2,152.63,152.62,6.4790018]
[1751594969357,0.2,152.63,152.61,26.0]
[1751594969541,0.2,152.63,152.62,6.19467866]
[1751594974048,0.2,152.63,152.61,32.19467866]
[1751594975667,0.2,152.63,152.62,6.19467866]
[1751594975967,6.75179191,152.63,152.62,6.19467866]
[1751594977244,0.2,152.63,152.62,6.19467866]
[1751594980644,0.2,152.63,152.62,6.4790018]
[1751594981669,0.2,152.63,152.62,13.031223]
[1751594982378,0.2,152.63,152.62,6.4790018]
[1751594984273,0.2,152.63,152.62,6.19467866]
[1751594989988,6.75179191,152.63,152.62,6.19467866]
[1751594990190,12.94647057,152.63,152.54,8.0192]
[1751594990364,6.19467866,152.62,152.57,6.19467866]
[1751594990691,6.19467866,152.62,152.58,6.4790018]
[1751594991886,6.55265054,152.61,152.58,6.4790018]
[1751594995474,6.55265054,152.61,152.58,6.19467866]
[1751594996591,6.55265054,152.61,152.57,6.19467866]
[1751595000599,0.2,152.63,152.6,6.19467866]
[1751595002112,12.94678588,152.63,152.57,0.28432314]
[1751595002279,6.19467866,152.62,152.58,6.19467866]
[1751595002479,6.19467866,152.62,152.57,6.4790018]
[1751595002684,6.19467866,152.6,152.56,0.28432314]
[1751595002971,6.19467866,152.61,152.56,6.33684023]
[1751595004192,6.55307994,152.6,152.56,6.33684023]
[1751595005880,6.55307994,152.6,152.57,6.19467866]
[1751595006194,6.5522212,152.62,152.58,6.19467866]
[1751595006912,12.74689986,152.62,152.58,6.19467866]
[1751595007096,12.74689986,152.62,152.57,6.19467866]
[1751595009506,12.74689986,152.62,152.56,6.98124566]
[1751595009689,6.5522212,152.62,152.58,6.19467866]
[1751595016380,12.74689986,152.62,152.57,6.19467866]
[1751595020119,6.5522212,152.62,152.58,6.4790018]
[1751595021824,12.74689986,152.62,152.57,6.4790018]
[1751595025123,29.12745286,152.62,152.56,0.1]
[1751595025314,6.19467866,152.6,152.56,0.1]
[1751595025499,6.19467866,152.59,152.56,0.1]
[1751595026295,22.9327742,152.62,152.56,0.1]
[1751595026533,6.19467866,152.6,152.56,0.1]
[1751595026921,22.9327742,152.62,152.56,0.1]
[1751595026922,6.19467866,152.59,152.56,0.1]
[1751595027110,6.55393891,152.58,152.56,0.1]
[1751595030534,6.19467866,152.59,152.56,0.1]
[1751595034599,6.55387662,152.59,152.56,0.1]
[1751595035620,6.55387662,152.59,152.56,6.29467866]
[1751595038532,6.55387662,152.59,152.56,0.1]
[1751595038836,6.55387662,152.59,152.56,6.29467866]
[1751595039816,6.55307994,152.6,152.56,4.06313255]
[1751595043124,6.75307994,152.6,152.56,4.06313255]
[1751595044446,0.2,152.6,152.58,3.96313255]
[1751595044821,0.2,152.6,152.59,3.96313255]
[1751595045631,6.75311117,152.6,152.58,3.96313255]
[1751595046038,6.75311117,152.6,152.57,3.96313255]
[1751595047340,6.75311117,152.6,152.56,0.38432314]
[1751595047530,6.75311117,152.6,152.57,3.96313255]
[1751595048840,0.2,152.6,152.57,3.96313255]
[1751595049234,6.75308946,152.6,152.57,3.96313255]
[1751595054846,6.75308946,152.6,152.56,0.1]
[1751595055049,6.75308946,152.6,152.56,4.06313255]
[1751595057741,3.96313255,152.59,152.56,0.1]
[1751595058131,27.09892187,152.6,152.56,0.1]
[1751595060048,27.09892187,152.6,152.56,4.06313255]
[1751595060253,10.71622201,152.6,152.56,4.06313255]
[1751595062230,10.71622201,152.6,152.56,0.1]
[1751595063358,6.55393891,152.58,152.56,0.1]
[1751595063856,10.51707146,152.58,152.56,0.1]
[1751595064153,3.96313255,152.57,152.56,0.1]
[1751595065552,10.51750103,152.57,152.56,0.1]
[1751595069363,10.51750103,152.57,152.56,1e-08]
[1751595069655,15.38708528,152.57,152.56,1e-08]
[1751595070365,10.51750103,152.57,152.56,1e-08]
[1751595071761,12.75317335,152.57,152.56,1e-08]
[1751595072138,18.95197822,152.57,152.56,1e-08]
[1751595072343,26.0,152.54,152.5,0.1]
[1751595072550,6.19880487,152.51,152.5,0.1]
[1751595073763,12.75575195,152.51,152.5,0.1]
[1751595074265,6.55694708,152.51,152.5,0.1]
[1751595074454,12.75575195,152.51,152.5,0.1]
[1751595093865,10.5255929,152.51,152.5,0.1]
[1751595096489,17.1149929,152.51,152.49,0.1]
[1751595096675,3.96864582,152.5,152.49,0.1]
[1751595098098,10.52602286,152.5,152.49,0.1]
[1751595098394,6.55737704,152.5,152.49,0.1]
[1751595100806,6.55651717,152.52,152.49,0.1]
[1751595101391,6.55651717,152.52,152.49,4.06864582]
[1751595102485,6.55651717,152.52,152.49,0.1]
[1751595102662,3.96864582,152.52,152.49,0.1]
[1751595102872,6.55608732,152.53,152.49,0.1]
[1751595103070,3.96864582,152.52,152.49,0.1]
[1751595105494,6.55694708,152.51,152.49,0.1]
[1751595105689,10.5255929,152.51,152.49,0.1]
[1751595105889,3.96864582,152.5,152.49,0.1]
[1751595107896,10.52602286,152.5,152.49,0.1]
[1751595108196,6.55737704,152.5,152.49,0.1]
[1751595109277,10.52602286,152.5,152.49,0.1]
[1751595111598,10.52602286,152.5,152.49,1e-08]
[1751595111795,12.76093164,152.5,152.49,1e-08]
[1751595113192,159.16093164,152.5,152.49,1e-08]
[1751595114778,152.95737704,152.5,152.49,1e-08]
[1751595114977,159.16093164,152.5,152.49,1e-08]
[1751595123597,13.18741635,152.5,152.49,1e-08]
[1751595125817,13.04525478,152.5,152.49,1e-08]
[1751595126009,12.76093164,152.5,152.49,1e-08]
[1751595132616,12.96093164,152.5,152.49,1e-08]
[1751595133824,10.72830345,152.5,152.49,1e-08]
[1751595145934,6.75737704,152.5,152.49,1e-08]
[1751595146134,10.72830345,152.5,152.49,1e-08]
[1751595147217,11.15478816,152.5,152.49,1e-08]
[1751595147419,27.0384938,152.5,152.49,1e-08]
[1751595147624,3.97092641,152.44,152.42,0.1]
[1751595149036,6.56038837,152.43,152.42,0.1]
[1751595154048,10.53131478,152.43,152.42,0.1]
[1751595154454,6.56038837,152.43,152.42,0.1]
[1751595154629,10.53131478,152.43,152.42,0.1]
[1751595157231,3.97092641,152.43,152.42,0.1]
[1751595158536,3.97092641,152.43,152.36,3.97092641]
[1751595158745,3.97092641,152.4,152.36,3.97092641]
[1751595159252,6.56211037,152.39,152.36,3.97092641]
[1751595160253,6.56211037,152.39,152.35,8.4599]
[1751595160436,6.56211037,152.39,152.36,3.97092641]
[1751595162639,3.97092641,152.4,152.36,3.97092641]
[1751595162640,6.56171911,152.4,152.36,3.97092641]
[1751595163036,6.56171911,152.4,152.35,15.02346071]
[1751595163249,6.56171911,152.4,152.36,3.97092641]
[1751595163567,6.56171911,152.4,152.36,4.07092641]
[1751595163736,10.53264552,152.4,152.36,4.07092641]
[1751595164058,6.56171911,152.4,152.36,4.07092641]
[1751595164258,10.53264552,152.4,152.36,4.07092641]
[1751595165749,16.40300102,152.42,152.36,4.07092641]
[1751595165941,3.97092641,152.4,152.36,4.07092641]
[1751595167565,16.40300102,152.42,152.36,4.07092641]
[1751595167766,3.97092641,152.4,152.36,4.07092641]
[1751595171162,6.56211037,152.39,152.36,4.07092641]
[1751595175843,16.40300102,152.42,152.36,4.07092641]
[1751595176044,3.97092641,152.4,152.36,4.07092641]
[1751595177753,16.40300102,152.42,152.36,0.1]
[1751595177947,6.56254101,152.38,152.36,0.1]
[1751595181878,3.97092641,152.4,152.36,0.1]
[1751595181879,6.56211037,152.39,152.36,0.1]
[1751595183175,10.53303678,152.39,152.36,0.1]
[1751595197174,6.56211037,152.39,152.36,0.1]
[1751595197494,10.53303678,152.39,152.36,0.1]
[1751595203312,3.97092641,152.39,152.36,0.1]
[1751595205114,22.96533082,152.41,152.36,0.1]
[1751595205294,6.56254101,152.38,152.36,0.1]
[1751595206314,10.53324869,152.39,152.36,0.1]
[1751595208221,22.96533082,152.41,152.36,0.1]
[1751595208401,3.97092641,152.4,152.36,0.1]
[1751595208887,6.56124926,152.41,152.36,0.1]
[1751595209092,3.97092641,152.4,152.36,4.07092641]
[1751595210115,3.97092641,152.39,152.36,0.1]
[1751595210613,6.56254101,152.38,152.36,0.1]
[1751595212213,3.97092641,152.39,152.36,0.1]
[1751595213593,6.56254101,152.38,152.36,0.1]
[1751595214520,10.53346742,152.38,152.36,0.1]
[1751595215028,6.56254101,152.38,152.36,0.1]
[1751595218905,6.56226455,152.39,152.36,0.1]
[1751595219300,6.5615063,152.41,152.37,3.97092641]
[1751595219708,10.53243271,152.41,152.37,3.97092641]
[1751595221112,6.5615063,152.41,152.37,3.97092641]
[1751595221305,10.53243271,152.41,152.37,3.97092641]
[1751595221508,6.5615063,152.41,152.37,3.97092641]
[1751595224519,10.53243271,152.41,152.37,3.97092641]
[1751595226037,10.53243271,152.41,152.36,0.52648471]
[1751595226211,10.53243271,152.41,152.37,3.97092641]
[1751595227308,10.53243271,152.41,152.36,4.49741112]
[1751595230937,6.5615063,152.41,152.36,0.52648471]
[1751595231246,10.53243271,152.41,152.37,3.97092641]
[1751595231811,10.53243271,152.41,152.36,0.1]
[1751595232019,10.53243271,152.41,152.37,3.97092641]
[1751595232635,10.53243271,152.41,152.36,0.1]
[1751595232834,10.53243271,152.41,152.37,3.97092641]
[1751595234142,26.93555586,152.41,152.37,3.97092641]
[1751595234342,3.97092641,152.4,152.36,0.1]
[1751595234523,3.97092641,152.38,152.36,0.1]
[1751595236554,6.56297171,152.37,152.36,0.1]
[1751595237742,6.56272533,152.38,152.36,0.1]
[1751595238324,6.56272533,152.38,152.36,4.07092641]
[1751595239342,22.96437241,152.41,152.36,4.07092641]
[1751595239518,3.97092641,152.4,152.36,4.07092641]
[1751595239720,3.97092641,152.4,152.36,0.1]
[1751595240139,6.56124926,152.41,152.36,4.07092641]
[1751595240345,10.53217567,152.41,152.37,3.97092641]
[1751595240844,6.56124926,152.41,152.38,3.97092641]
[1751595241833,10.53217567,152.41,152.37,3.97092641]
[1751595244243,10.53217567,152.41,152.36,0.52648471]
[1751595244443,10.53217567,152.41,152.37,3.97092641]
[1751595247950,3.97092641,152.4,152.36,0.1]
[1751595248123,3.97092641,152.39,152.36,0.1]
[1751595248327,3.97092641,152.4,152.36,0.1]
[1751595248543,10.53217567,152.41,152.36,4.07092641]
[1751595248923,3.97092641,152.4,152.36,4.07092641]
[1751595249339,3.97092641,152.4,152.36,0.1]
[1751595249840,3.97092641,152.4,152.37,0.1]
[1751595250447,6.56211037,152.39,152.37,0.1]
[1751595251942,10.53229248,152.41,152.37,0.1]
[1751595252245,10.53229248,152.41,152.37,4.07092641]
[1751595252445,6.56136607,152.41,152.37,4.07092641]
[1751595257745,6.56136607,152.41,152.38,3.97092641]
[1751595258337,6.56136607,152.41,152.37,4.07092641]
[1751595258838,10.53229248,152.41,152.37,4.07092641]
[1751595259343,6.56136607,152.41,152.37,4.07092641]
[1751595263703,6.56136607,152.41,152.38,3.97092641]
[1751595267368,6.56136607,152.41,152.37,0.38432314]
[1751595267579,6.56136607,152.41,152.38,3.97092641]
[1751595267876,6.56136607,152.41,152.37,0.52648471]
[1751595268087,6.56136607,152.41,152.38,3.97092641]
[1751595268245,4.17092641,152.42,152.4,3.97092641]
[1751595268246,6.76085577,152.42,152.4,3.97092641]
[1751595271379,6.76085577,152.42,152.38,6.56251248]
[1751595271559,6.76085577,152.42,152.4,3.97092641]
[1751595274375,6.76085577,152.42,152.39,3.97092641]
[1751595288008,6.76088086,152.42,152.4,3.97092641]
[1751595289710,6.76088086,152.42,152.41,4.25524955]
[1751595289711,0.2,152.42,152.41,4.25524955]
[1751595291421,0.2,152.42,152.41,3.97092641]
[1751595291596,0.2,152.42,152.41,10.95866038]
[1751595293697,0.2,152.42,152.41,6.98773397]
[1751595293892,0.2,152.42,152.41,10.95866038]
[1751595294094,0.2,152.42,152.41,29.97092641]
[1751595297305,0.2,152.42,152.41,36.95866038]
[1751595303005,0.2,152.42,152.41,70.33866038]
[1751595303203,0.2,152.49,152.43,1.6489]
[1751595303427,0.2,152.49,152.48,3.97092641]
[1751595304013,0.2,152.49,152.45,0.42648471]
[1751595304231,0.2,152.49,152.47,3.97092641]
[1751595305531,6.75786412,152.49,152.47,3.97092641]
[1751595305710,0.2,152.49,152.47,3.97092641]
[1751595305906,6.75784308,152.49,152.46,3.97092641]
[1751595308830,10.72876949,152.49,152.42,6.5604882]
[1751595309036,3.97092641,152.48,152.44,3.97092641]
[1751595309211,6.75784308,152.49,152.44,3.97092641]
[1751595309417,10.72876949,152.49,152.44,3.97092641]
[1751595309635,10.72876949,152.49,152.43,0.42648471]
[1751595309636,6.75784308,152.49,152.43,0.42648471]
[1751595309809,6.75784308,152.49,152.47,6.19952003]
[1751595309810,0.2,152.49,152.47,6.19952003]
[1751595313340,6.75785655,152.49,152.47,6.19952003]
[1751595313831,0.2,152.49,152.47,6.19952003]
[1751595314626,0.2,152.49,152.45,6.5594278]
[1751595314835,0.2,152.49,152.47,6.19952003]
[1751595315922,6.75783977,152.49,152.47,6.19952003]
[1751595316630,6.75783977,152.49,152.46,6.19952003]
[1751595317744,6.75783977,152.49,152.43,32.56026408]
[1751595317941,6.75783977,152.49,152.45,6.19952003]
[1751595318317,6.75783977,152.49,152.46,6.19952003]
[1751595323144,6.75783977,152.49,152.43,32.56026408]
[1751595323638,6.75783977,152.49,152.46,6.19952003]
[1751595325844,6.75783977,152.49,152.45,6.19952003]
[1751595329743,6.75783977,152.49,152.45,3.96881992]
[1751595330835,6.75783977,152.49,152.43,26.0]
[1751595330836,3.96881992,152.48,152.43,26.0]
[1751595331148,3.96881992,152.48,152.41,4.06881992]
[1751595331149,3.96881992,152.46,152.41,4.06881992]
[1751595331364,3.96881992,152.43,152.41,0.1]
[1751595332745,10.52929483,152.43,152.41,0.1]
[1751595333738,12.76669003,152.43,152.41,0.1]
[1751595334757,6.55995801,152.44,152.41,0.1]
[1751595335159,6.20621512,152.43,152.41,0.1]
[1751595335359,6.55995801,152.44,152.41,0.1]
[1751595335560,6.20621512,152.43,152.41,0.1]
[1751595336757,12.766774,152.43,152.41,0.1]
[1751595338861,6.20621512,152.42,152.41,0.1]
[1751595341261,12.76703391,152.42,152.41,0.1]
[1751595348272,6.20621512,152.42,152.41,0.1]
[1751595350374,12.76703391,152.42,152.41,0.1]
[1751595351666,19.23173391,152.42,152.41,0.1]
[1751595352193,19.23173391,152.42,152.38,0.1]
[1751595352194,61.63378088,152.42,152.38,0.1]
[1751595352346,6.20621512,152.39,152.38,0.1]
[1751595352677,12.76832549,152.39,152.38,0.1]
[1751595353260,6.56211037,152.39,152.38,0.1]
[1751595353462,12.76832549,152.39,152.38,0.1]
[1751595357775,10.53625282,152.39,152.38,0.1]
[1751595370161,10.53625282,152.39,152.37,0.1]
[1751595370381,3.97414245,152.38,152.37,0.1]
[1751595370974,3.97414245,152.38,152.36,0.1]
[1751595371296,48.9673863,152.39,152.34,1e-08]
[1751595371297,26.0,152.35,152.34,1e-08]
[1751595371463,32.56383327,152.35,152.34,1e-08]
[1751595371667,36.53797572,152.35,152.34,1e-08]
[1751595372393,6.56383327,152.35,152.34,1e-08]
[1751595372589,10.53797572,152.35,152.34,1e-08]
[1751595377909,6.56383327,152.35,152.34,1e-08]
[1751595378380,156.93726144,152.37,152.34,1e-08]
[1751595380811,6.56311899,152.37,152.34,1e-08]
[1751595380981,6.56311899,152.37,152.34,3.97414246]
[1751595382117,3.97414245,152.35,152.34,1e-08]
[1751595382404,22.97054827,152.37,152.34,1e-08]
[1751595382609,3.97414245,152.35,152.34,1e-08]
[1751595383298,3.97414245,152.36,152.34,1e-08]
[1751595385109,6.56383327,152.35,152.34,1e-08]
[1751595388906,6.56340246,152.36,152.34,1e-08]
[1751595389116,10.53754491,152.36,152.34,1e-08]
[1751595395100,10.53797572,152.35,152.34,1e-08]
[1751595396223,36.53797572,152.35,152.34,1e-08]
[1751595396537,3.97414245,152.3,152.29,0.09962816]
[1751595397224,10.54013063,152.3,152.29,0.09962816]
[1751595397819,12.78424951,152.3,152.29,0.09962816]
[1751595399316,20.79654951,152.3,152.29,1e-08]
[1751595402500,46.79654951,152.3,152.29,1e-08]
[1751595404436,47.22303422,152.3,152.28,1e-08]
[1751595404620,6.21826133,152.29,152.28,1e-08]
[1751595406718,40.57828818,152.3,152.28,1e-08]
[1751595406922,6.21826133,152.29,152.28,1e-08]
[1751595407824,12.78468066,152.29,152.28,1e-08]
[1751595412816,6.56641933,152.29,152.28,1e-08]
[1751595413020,12.78468066,152.29,152.28,1e-08]
[1751595418430,6.56641933,152.29,152.28,1e-08]
[1751595418631,12.78468066,152.29,152.28,1e-08]
[1751595420736,12.98468066,152.29,152.28,1e-08]
[1751595423835,10.7467036,152.29,152.28,1e-08]
[1751595426040,6.76641933,152.29,152.28,1e-08]
[1751595426223,10.7467036,152.29,152.28,1e-08]
[1751595426640,0.2,152.29,152.28,1e-08]
[1751595426946,0.2,152.29,152.28,3.98028428]
[1751595427748,0.2,152.29,152.28,6.21501081]
[1751595432954,0.2,152.29,152.28,1e-08]
[1751595433146,0.2,152.29,152.28,6.21501081]
[1751595439956,0.2,152.29,152.28,6.64149552]
[1751595441836,0.2,152.29,152.28,0.42648472]
[1751595442147,0.2,152.29,152.28,6.64149552]
[1751595443542,0.2,152.29,152.28,1e-08]
[1751595443741,6.76641933,152.29,152.28,1e-08]
[1751595447266,0.2,152.29,152.28,6.21501081]
[1751595448671,0.2,152.29,152.28,6.64149552]
[1751595450446,0.2,152.29,152.28,32.64149552]
[1751595450767,0.2,152.29,152.28,26.28432315]
[1751595450955,0.2,152.29,152.28,32.64149552]
[1751595455375,6.76641933,152.29,152.28,6.21501081]
[1751595455966,6.76641933,152.29,152.28,1e-08]
[1751595470168,6.76641933,152.29,152.28,6.21501081]
[1751595470169,0.2,152.29,152.28,6.21501081]
[1751595475193,0.2,152.29,152.28,1e-08]
[1751595475383,0.2,152.29,152.28,6.21501081]
[1751595485416,0.2,152.29,152.28,13.20834605]
[1751595485908,0.2,152.29,152.28,10.96838454]
[1751595489490,0.2,152.29,152.28,4.40153401]
[1751595489910,0.2,152.29,152.28,6.64010515]
[1751595490199,0.2,152.29,152.28,13.20695568]
[1751595492088,0.2,152.29,152.28,6.64010515]
[1751595492802,0.2,152.29,152.28,26.42648472]
[1751595493111,0.2,152.29,152.28,32.64010515]
[1751595500005,0.2,152.29,152.28,39.20695568]
[1751595501815,0.2,152.29,152.28,32.64010515]
[1751595504528,0.2,152.29,152.28,6.64010515]
[1751595504729,0.2,152.29,152.28,6.21362044]
[1751595505638,6.76641933,152.29,152.28,6.21362044]
[1751595506333,6.76641933,152.29,152.28,1e-08]
[1751595506632,12.98003976,152.29,152.28,1e-08]
[1751595508932,19.29373976,152.29,152.28,1e-08]
[1751595512040,13.08011933,152.29,152.28,1e-08]
[1751595512341,19.29373976,152.29,152.28,1e-08]
[1751595513837,13.08011933,152.29,152.28,1e-08]
[1751595514024,19.29373976,152.29,152.28,1e-08]
[1751595518445,13.08011933,152.29,152.28,1e-08]
[1751595518657,19.29373976,152.29,152.28,1e-08]
[1751595520446,13.08011933,152.29,152.28,1e-08]
[1751595520649,19.29373976,152.29,152.28,1e-08]
[1751595521847,17.06009179,152.29,152.28,1e-08]
[1751595526649,10.74639179,152.29,152.28,1e-08]
[1751595529762,6.76641933,152.29,152.28,1e-08]
[1751595530450,10.74639179,152.29,152.28,1e-08]
[1751595538036,6.76641933,152.29,152.28,1e-08]
[1751595538748,10.74639179,152.29,152.28,1e-08]
[1751595540232,59.99453676,152.29,152.21,0.1]
[1751595540435,3.97997246,152.25,152.21,0.1]
[1751595540960,3.97997246,152.26,152.21,4.07997246]
[1751595541738,3.97997246,152.26,152.21,6.32118793]
[1751595541739,22.64060699,152.26,152.21,6.32118793]
[1751595541956,6.22118793,152.24,152.21,0.1]
[1751595542340,6.22118793,152.23,152.21,0.1]
[1751595543038,6.22118793,152.22,152.21,0.1]
[1751595543558,6.22118793,152.23,152.21,0.1]
[1751595544265,6.22118793,152.22,152.21,0.1]
[1751595546250,12.79062689,152.22,152.21,0.1]
[1751595549005,22.99001576,152.24,152.21,0.1]
[1751595549173,6.22118793,152.22,152.21,0.1]
[1751595552466,12.79062689,152.22,152.21,0.1]
[1751595553263,6.56943896,152.22,152.21,0.1]
[1751595553465,12.79062689,152.22,152.21,0.1]
[1751595557366,12.79062689,152.22,152.21,1e-08]
[1751595557772,38.79062689,152.22,152.21,1e-08]
[1751595563075,12.79062689,152.22,152.21,1e-08]
[1751595563252,159.6171116,152.22,152.21,1e-08]
[1751595563856,157.38205774,152.22,152.21,1e-08]
[1751595564878,156.95557303,152.22,152.21,1e-08]
[1751595565257,157.38205774,152.22,152.21,1e-08]
[1751595565764,159.62441662,152.22,152.21,1e-08]
[1751595567285,192.90441662,152.22,152.21,1e-08]
[1751595568471,26.0,152.19,152.1,6.22849295]
[1751595568684,6.22849295,152.14,152.09,13.19065452]
[1751595569970,6.22849295,152.14,152.09,13.04849295]
[1751595570360,6.22849295,152.14,152.09,8.04849295]
[1751595570679,6.57332544,152.13,152.09,8.04849295]
[1751595571179,6.57332544,152.13,152.09,1.82]
[1751595571379,6.57332544,152.13,152.09,8.04849295]
[1751595572661,6.57332544,152.13,152.1,6.22849295]
[1751595572860,6.57332544,152.13,152.09,8.04849295]
[1751595574293,29.235132,152.13,152.08,0.14216157]
[1751595574461,33.28,152.12,152.01,1.6358]
[1751595574667,26.0,152.09,152.01,1.6358]
[1751595574967,6.22849295,152.08,152.03,6.22849295]
[1751595575376,6.57591898,152.07,152.03,6.22849295]
[1751595576180,6.57591898,152.07,152.02,0.1]
[1751595576381,12.80441193,152.07,152.02,0.1]
[1751595576583,6.57591898,152.07,152.03,6.22849295]
[1751595577186,6.57591898,152.07,152.01,27.6358]
[1751595577384,6.57591898,152.07,152.03,6.22849295]
[1751595577800,12.80441193,152.07,152.03,6.22849295]
[1751595578000,12.80441193,152.07,152.02,0.42648471]
[1751595578202,12.80441193,152.07,152.03,6.22849295]
[1751595579582,6.5755667,152.08,152.03,6.22849295]
[1751595579783,12.8031149,152.1,152.06,6.22849295]
[1751595580098,6.22849295,152.1,152.06,6.22849295]
[1751595580284,12.80284868,152.11,152.07,6.22849295]
[1751595583792,12.80284868,152.11,152.05,0.42648471]
[1751595584118,12.80284868,152.11,152.07,6.22849295]
[1751595584318,12.80284868,152.11,152.05,0.42648471]
[1751595584616,12.80284868,152.11,152.07,6.22849295]
[1751595584814,12.80284868,152.11,152.05,0.42648471]
[1751595585001,12.80284868,152.11,152.07,6.22849295]
[1751595587019,6.57505424,152.09,152.06,6.22849295]